{"text_format":"1","workbook":"xlsx","n_sheets":4,"sheets":["SCREENING TOOL","MILITARY PREFERENCE","FORMER FOSTER CHILD PREFERENCE","RIF PREFERENCE"],"not_rendered":{"charts":0,"images":2,"macros":1,"external_links":0,"defined_names":1,"comments":1,"pivot_tables":0},"unopened":[],"bounds":{"document_bytes":16777216,"sheet_cells":100000,"rows_first":2000,"rows_last":500,"rows_between":2000,"halvings":0,"cell_chars":16384,"cell_head_chars":4096},"cells_cut":0,"cells_raw":0,"read":"whole","date_system":"1900"}

{"sheet":"SCREENING TOOL","index":0,"n_rows":100,"n_cols":21,"rows_kept":100,"cut":false,"hidden":false,"merged":[[0,3,0,9]]}
[null,null,null,"PREFERRED KNOWLEDGE, SKILLS, AND ABILITIES"]
[null,"APPLICANTS",null,null,null,null,null,null,null,"  APPLICATION  SCORE",null,"  INTERVIEW 1 SCORE","  INTERVIEW 2 SCORE",null,"  REFERENCE SCORE","Military Preference Claimed","Former Foster Child Preference Claimed",null,"  TOTAL SCORE"]
[null,null,null,null,null,null,null,null,null,null,null,null,null,null,null,"Y or N","Y or N"]
[]
[null,null,null,null,null,null,null,null,null,{"$f":"SUM(D5:I5)","v":0},null,null,null,null,null,null,null,null,{"$f":"J5+L5+M5+O5","v":0},null,{"$f":"SUM(S5)","v":0}]
[null,null,null,null,null,null,null,null,null,0,null,null,null,null,null,null,null,null,0,null,0]
[null,null,null,null,null,null,null,null,null,0,null,null,null,null,null,null,null,null,0,null,0]
[null,null,null,null,null,null,null,null,null,0,null,null,null,null,null,null,null,null,0,null,0]
[null,null,null,null,null,null,null,null,null,0,null,null,null,null,null,null,null,null,0,null,0]
[null,null,null,null,null,null,null,null,null,0,null,null,null,null,null,null,null,null,0,null,0]
[null,null,null,null,null,null,null,null,null,0,null,null,null,null,null,null,null,null,0,null,0]
[null,null,null,null,null,null,null,null,null,0,null,null,null,null,null,null,null,null,0,null,0]
[null,null,null,null,null,null,null,null,null,0,null,null,null,null,null,null,null,null,0,null,0]
[null,null,null,null,null,null,null,null,null,0,null,null,null,null,null,null,null,null,0,null,0]
[null,null,null,null,null,null,null,null,null,0,null,null,null,null,null,null,null,null,0,null,0]
[null,null,null,null,null,null,null,null,null,0,null,null,null,null,null,null,null,null,0,null,0]
[null,null,null,null,null,null,null,null,null,0,null,null,null,null,null,null,null,null,0,null,0]
[null,null,null,null,null,null,null,null,null,0,null,null,null,null,null,null,null,null,0,null,0]
[null,null,null,null,null,null,null,null,null,0,null,null,null,null,null,null,null,null,0,null,0]
[null,null,null,null,null,null,null,null,null,0,null,null,null,null,null,null,null,null,0,null,0]
[null,null,null,null,null,null,null,null,null,0,null,null,null,null,null,null,null,null,0,null,0]
[null,null,null,null,null,null,null,null,null,0,null,null,null,null,null,null,null,null,0,null,0]
[null,null,null,null,null,null,null,null,null,0,null,null,null,null,null,null,null,null,0,null,0]
[null,null,null,null,null,null,null,null,null,0,null,null,null,null,null,null,null,null,0,null,0]
[null,null,null,null,null,null,null,null,null,0,null,null,null,null,null,null,null,null,0,null,0]
[null,null,null,null,null,null,null,null,null,0,null,null,null,null,null,null,null,null,0,null,0]
[null,null,null,null,null,null,null,null,null,0,null,null,null,null,null,null,null,null,0,null,0]
[null,null,null,null,null,null,null,null,null,0,null,null,null,null,null,null,null,null,0,null,0]
[null,null,null,null,null,null,null,null,null,0,null,null,null,null,null,null,null,null,0,null,0]
[null,null,null,null,null,null,null,null,null,0,null,null,null,null,null,null,null,null,0,null,0]
[null,null,null,null,null,null,null,null,null,0,null,null,null,null,null,null,null,null,0,null,0]
[null,null,null,null,null,null,null,null,null,0,null,null,null,null,null,null,null,null,0,null,0]
[null,null,null,null,null,null,null,null,null,0,null,null,null,null,null,null,null,null,0,null,0]
[null,null,null,null,null,null,null,null,null,0,null,null,null,null,null,null,null,null,0,null,0]
[null,null,null,null,null,null,null,null,null,0,null,null,null,null,null,null,null,null,0,null,0]
[null,null,null,null,null,null,null,null,null,0,null,null,null,null,null,null,null,null,0,null,0]
[null,null,null,null,null,null,null,null,null,{"$f":"SUM(D37:I37)","v":0},null,null,null,null,null,null,null,null,{"$f":"J37+L37+M37+O37","v":0},null,{"$f":"SUM(S37)","v":0}]
[null,null,null,null,null,null,null,null,null,0,null,null,null,null,null,null,null,null,0,null,0]
[null,null,null,null,null,null,null,null,null,0,null,null,null,null,null,null,null,null,0,null,0]
[null,null,null,null,null,null,null,null,null,0,null,null,null,null,null,null,null,null,0,null,0]
[null,null,null,null,null,null,null,null,null,0,null,null,null,null,null,null,null,null,0,null,0]
[null,null,null,null,null,null,null,null,null,0,null,null,null,null,null,null,null,null,0,null,0]
[null,null,null,null,null,null,null,null,null,0,null,null,null,null,null,null,null,null,0,null,0]
[null,null,null,null,null,null,null,null,null,0,null,null,null,null,null,null,null,null,0,null,0]
[null,null,null,null,null,null,null,null,null,0,null,null,null,null,null,null,null,null,0,null,0]
[null,null,null,null,null,null,null,null,null,0,null,null,null,null,null,null,null,null,0,null,0]
[null,null,null,null,null,null,null,null,null,0,null,null,null,null,null,null,null,null,0,null,0]
[null,null,null,null,null,null,null,null,null,0,null,null,null,null,null,null,null,null,0,null,0]
[null,null,null,null,null,null,null,null,null,0,null,null,null,null,null,null,null,null,0,null,0]
[null,null,null,null,null,null,null,null,null,0,null,null,null,null,null,null,null,null,0,null,0]
[null,null,null,null,null,null,null,null,null,0,null,null,null,null,null,null,null,null,0,null,0]
[null,null,null,null,null,null,null,null,null,0,null,null,null,null,null,null,null,null,0,null,0]
[null,null,null,null,null,null,null,null,null,0,null,null,null,null,null,null,null,null,0,null,0]
[null,null,null,null,null,null,null,null,null,0,null,null,null,null,null,null,null,null,0,null,0]
[null,null,null,null,null,null,null,null,null,0,null,null,null,null,null,null,null,null,0,null,0]
[null,null,null,null,null,null,null,null,null,0,null,null,null,null,null,null,null,null,0,null,0]
[null,null,null,null,null,null,null,null,null,0,null,null,null,null,null,null,null,null,0,null,0]
[null,null,null,null,null,null,null,null,null,0,null,null,null,null,null,null,null,null,0,null,0]
[null,null,null,null,null,null,null,null,null,0,null,null,null,null,null,null,null,null,0,null,0]
[null,null,null,null,null,null,null,null,null,0,null,null,null,null,null,null,null,null,0,null,0]
[null,null,null,null,null,null,null,null,null,0,null,null,null,null,null,null,null,null,0,null,0]
[null,null,null,null,null,null,null,null,null,0,null,null,null,null,null,null,null,null,0,null,0]
[null,null,null,null,null,null,null,null,null,0,null,null,null,null,null,null,null,null,0,null,0]
[null,null,null,null,null,null,null,null,null,0,null,null,null,null,null,null,null,null,0,null,0]
[null,null,null,null,null,null,null,null,null,0,null,null,null,null,null,null,null,null,0,null,0]
[null,null,null,null,null,null,null,null,null,0,null,null,null,null,null,null,null,null,0,null,0]
[null,null,null,null,null,null,null,null,null,0,null,null,null,null,null,null,null,null,0,null,0]
[null,null,null,null,null,null,null,null,null,0,null,null,null,null,null,null,null,null,0,null,0]
[null,null,null,null,null,null,null,null,null,{"$f":"SUM(D69:I69)","v":0},null,null,null,null,null,null,null,null,{"$f":"J69+L69+M69+O69","v":0},null,{"$f":"SUM(S69)","v":0}]
[null,null,null,null,null,null,null,null,null,0,null,null,null,null,null,null,null,null,0,null,0]
[null,null,null,null,null,null,null,null,null,0,null,null,null,null,null,null,null,null,0,null,0]
[null,null,null,null,null,null,null,null,null,0,null,null,null,null,null,null,null,null,0,null,0]
[null,null,null,null,null,null,null,null,null,0,null,null,null,null,null,null,null,null,0,null,0]
[null,null,null,null,null,null,null,null,null,0,null,null,null,null,null,null,null,null,0,null,0]
[null,null,null,null,null,null,null,null,null,0,null,null,null,null,null,null,null,null,0,null,0]
[null,null,null,null,null,null,null,null,null,0,null,null,null,null,null,null,null,null,0,null,0]
[null,null,null,null,null,null,null,null,null,0,null,null,null,null,null,null,null,null,0,null,0]
[null,null,null,null,null,null,null,null,null,0,null,null,null,null,null,null,null,null,0,null,0]
[null,null,null,null,null,null,null,null,null,0,null,null,null,null,null,null,null,null,0,null,0]
[null,null,null,null,null,null,null,null,null,0,null,null,null,null,null,null,null,null,0,null,0]
[null,null,null,null,null,null,null,null,null,0,null,null,null,null,null,null,null,null,0,null,0]
[null,null,null,null,null,null,null,null,null,0,null,null,null,null,null,null,null,null,0,null,0]
[null,null,null,null,null,null,null,null,null,0,null,null,null,null,null,null,null,null,0,null,0]
[null,null,null,null,null,null,null,null,null,0,null,null,null,null,null,null,null,null,0,null,0]
[null,null,null,null,null,null,null,null,null,0,null,null,null,null,null,null,null,null,0,null,0]
[null,null,null,null,null,null,null,null,null,0,null,null,null,null,null,null,null,null,0,null,0]
[null,null,null,null,null,null,null,null,null,0,null,null,null,null,null,null,null,null,0,null,0]
[null,null,null,null,null,null,null,null,null,0,null,null,null,null,null,null,null,null,0,null,0]
[null,null,null,null,null,null,null,null,null,0,null,null,null,null,null,null,null,null,0,null,0]
[null,null,null,null,null,null,null,null,null,0,null,null,null,null,null,null,null,null,0,null,0]
[null,null,null,null,null,null,null,null,null,0,null,null,null,null,null,null,null,null,0,null,0]
[null,null,null,null,null,null,null,null,null,0,null,null,null,null,null,null,null,null,0,null,0]
[null,null,null,null,null,null,null,null,null,0,null,null,null,null,null,null,null,null,0,null,0]
[null,null,null,null,null,null,null,null,null,0,null,null,null,null,null,null,null,null,0,null,0]
[null,null,null,null,null,null,null,null,null,0,null,null,null,null,null,null,null,null,0,null,0]
[null,null,null,null,null,null,null,null,null,0,null,null,null,null,null,null,null,null,0,null,0]
[null,null,null,null,null,null,null,null,null,0,null,null,null,null,null,null,null,null,0,null,0]
[null,null,null,null,null,null,null,null,null,0,null,null,null,null,null,null,null,null,0,null,0]
[null,null,null,null,null,null,null,null,null,0,null,null,null,null,null,null,null,null,0,null,0]
[null,null,null,null,null,null,null,null,null,0,null,null,null,null,null,null,null,null,0,null,0]

{"sheet":"MILITARY PREFERENCE","index":1,"n_rows":42,"n_cols":1,"rows_kept":42,"cut":false,"hidden":false,"merged":[]}
["MILITARY PREFERENCE"]
[]
["ELIGIBILITY:     INDIVIDUALS ENTITLED TO MILITARY PREFERENCE RECEIVE CONSIDERATION IN INTERVIEWING AND HIRING (SELECTION). "]
[]
["Veteran is defined as a person who:"]
["·       Has served in:"]
["o   the Army, Navy, Air Force, Coast Guard, or Marine Corps of the United States or the United States Health Service un 42 U.S.C. Section 201 et seq., as amended;"]
["o   the Texas Military Forces as defined by Section 437.001; or"]
["o   an auxiliary service of one of those branches of the armed forces; and"]
["·       Has an honorable discharge from the branch of service in which the person served."]
[]
["Disabled Veteran is defined as a person who:"]
["·       Is classified as disabled by the U.S. Department of Veterans Affairs or the branch of the service in which the veteran served and;"]
["·       Whose disability is service-connected."]
[]
["Others eligible for consideration under Military Preference:"]
["·       Surviving Spouse of a Veteran who has not remarried; or"]
["·       Spouse of Member of the US Armed Forces or Texas National Guard on active duty; or"]
["·       Spouse of a Disabled Veteran, if the spouse is the primary source of income for the household and the veteran has a total disability rated based on either having a service=connected disability with a disability rating of at least 70 percent or on individual unemployability; or"]
["·       Orphan of a Veteran who was killed on active duty"]
[]
[]
["INTERVIEWING:"]
["When first interviews are being conducted – with no restrictions as to how the first interview is conducted, i.e. phone, Zoom (video) or in-person;"]
["·       If there is at least one qualified (met minimum qualifications of education/experience) candidate in the pool who has designated Military Preference and"]
["o   If six or fewer candidates are interviewed, then at least one candidate with Military Preference must be included (added) in the interviews"]
["o   If more than six candidates are interviewed, 20% candidates with Military Preference must be included in the interviews – if there are multiple candidates that have designated Military Preference."]
["·       If there are no qualified (met minimum education and experience) candidates with Military Preference in the pool, there is no requirement to interview candidates with Military Preference."]
[]
[]
["Hiring:"]
["Military Preference applied in hiring (selection) indicates if two or more candidates are finalists for a position and equal in all respects, the candidate with the Military Preference would be offered the job.  The Military Preference priority (if the finalists that are equal also have Military Preference would be in the following order:"]
["1.       a veteran with a disability;"]
["2.       a veteran;"]
["3.       a surviving spouse who has not remarried;"]
["4.       a spouse of active duty member of armed forces or Texas National Guard;"]
["5.       a spouse of a disabled veteran who is primary source of household income;"]
["6.       an orphan of a military person killed on active duty."]
[]
[]
["NOTE:"]
["The applicant must produce a government document certifying their right to such a preference decision if the preference is used in the employment decision.  "]

{"sheet":"FORMER FOSTER CHILD PREFERENCE","index":2,"n_rows":16,"n_cols":6,"rows_kept":16,"cut":false,"hidden":false,"merged":[[15,1,15,13]]}
["FORMER FOSTER CHILD PREFERENCE"]
[null,"Hire if Equally Qualified with Top Candidate"]
[null,null,"Texas Government Code",null,null,672]
[]
[null,null,"EMPLOYMENT PREFERENCE. (a) An individual who was under the permanent managing conservatorship of the Department"]
[null,null,"of Family and Protective Services on the day preceding the individual's 18th birthday is entitled to a preference in employment with a "]
[null,null,"state agency over other applicants for the same position who do not have a greater qualification."]
[null,null,"(b) This chapter does not apply to:"]
[null,null,null,"(1) the position of private secretary or deputy of an official or department; or"]
[null,null,null,"(2) an individual holding a strictly confidential relation to the employing officer."]
[]
[null,"AGE LIMIT:  An individual is entitled to an employment preference under this chapter only if the individual is 25 years of age or younger."]
[]
[null,"This preference only applies at final selection of candidate. This does not apply during the interview process."]
[]
["NOTE: ","The applicant must produce a government document certifying their right to such a preference if the preference is used in the hiring decision."]

{"sheet":"RIF PREFERENCE","index":3,"n_rows":8,"n_cols":2,"rows_kept":8,"cut":false,"hidden":false,"merged":[]}
["RIF PREFERENCE"]
[]
["Service => 10 Years"]
[null,"Must interview if meet minimum qualifications"]
[]
["Service < 10 Years"]
[null,"Hire if Equally Qualified with Top Candidate"]
[null,"No requirement to interview "]